[Event "ONJK U25"]
[Site "Enschede, Netherlands"]
[Date "2022.08.10"]
[Round "3.6"]
[White "De Vries, Laurens"]
[Black "Van Iersel, Yorn"]
[Result "0-1"]
[TimeControl "90min + 30sec/move"]
[WhiteElo "1409"]
[BlackElo "1419"]

1. e4 {[%clk 01:30:58]} {[%emt 00:00:01]} e5 {[%clk 01:30:52]} {[%emt
00:00:09]} 2. Nf3 {[%clk 01:31:23]} {[%emt 00:00:04]} Nc6 {[%clk 01:31:13]}
{[%emt 00:00:10]} 3. d4 {[%clk 01:31:46]} {[%emt 00:00:06]} exd4 {[%clk
01:31:32]} {[%emt 00:00:12]} 4. Bc4 {[%clk 01:32:08]} {[%emt 00:00:08]} Nf6
{[%clk 01:31:42]} {[%emt 00:00:19]} 5. e5 {[%clk 01:32:25]} {[%emt 00:00:13]}
d5 {[%clk 01:32:07]} {[%emt 00:00:05]} 6. Bb5 {[%clk 01:32:49]} {[%emt
00:00:06]} Ne4 {[%clk 01:32:29]} {[%emt 00:00:08]} 7. Nxd4 {[%clk 01:33:10]}
{[%emt 00:00:10]} Bd7 {[%clk 01:32:47]} {[%emt 00:00:12]} 8. Bxc6 {[%clk
01:33:29]} {[%emt 00:00:10]} bxc6 {[%clk 01:32:49]} {[%emt 00:00:29]} 9. O-O
{[%clk 01:33:49]} {[%emt 00:00:10]} Bc5 {[%clk 01:28:55]} {[%emt 00:04:24]} 10.
Be3 {[%clk 01:34:10]} {[%emt 00:00:09]} Bb6 {[%clk 01:28:04]} {[%emt 00:01:21]}
11. f3 {[%clk 01:34:30]} {[%emt 00:00:09]} Nc5 {[%clk 01:25:18]} {[%emt
00:03:17]} 12. b4 {[%clk 01:31:53]} {[%emt 00:03:07]} Ne6 {[%clk 01:24:34]}
{[%emt 00:01:14]} 13. f4 {[%clk 01:32:02]} {[%emt 00:00:20]} Nxd4 {[%clk
01:22:52]} {[%emt 00:02:12]} 14. Bxd4 {[%clk 01:32:01]} {[%emt 00:00:31]} g6
{[%clk 01:04:16]} {[%emt 00:19:08]} 15. Nc3 {[%clk 01:23:43]} {[%emt 00:08:47]}
Bg4 {[%clk 01:00:10]} {[%emt 00:04:36]} 16. Qd2 {[%clk 01:21:59]} {[%emt
00:02:13]} Qd7 {[%clk 00:59:11]} {[%emt 00:01:31]} 17. Kh1 {[%clk 01:19:39]}
{[%emt 00:02:49]} Be6 {[%clk 00:55:48]} {[%emt 00:03:53]} 18. Ne2 {[%clk
01:14:42]} {[%emt 00:05:26]} h5 {[%clk 00:47:08]} {[%emt 00:09:10]} 19. Qc3
{[%clk 01:03:06]} {[%emt 00:12:06]} O-O {[%clk 00:37:28]} {[%emt 00:10:10]} 20.
Rae1 {[%clk 00:55:18]} {[%emt 00:08:18]} a5 {[%clk 00:37:16]} {[%emt 00:00:43]}
21. Bxb6 {[%clk 00:52:53]} {[%emt 00:02:54]} cxb6 {[%clk 00:36:26]} {[%emt
00:01:21]} 22. a3 {[%clk 00:52:43]} {[%emt 00:00:39]} Rfc8 {[%clk 00:36:23]}
{[%emt 00:00:33]} 23. bxa5 {[%clk 00:44:38]} {[%emt 00:08:36]} Rxa5 {[%clk
00:35:32]} {[%emt 00:01:21]} 24. Nd4 {[%clk 00:44:14]} {[%emt 00:00:54]} c5
{[%clk 00:34:44]} {[%emt 00:01:18]} 25. Nxe6 {[%clk 00:43:37]} {[%emt
00:01:06]} fxe6 {[%clk 00:34:39]} {[%emt 00:00:35]} 26. Qd3 {[%clk 00:42:50]}
{[%emt 00:01:17]} Qg7 {[%clk 00:33:17]} {[%emt 00:01:53]} 27. Rb1 {[%clk
00:42:06]} {[%emt 00:01:14]} Rca8 {[%clk 00:32:15]} {[%emt 00:01:32]} 28. Rxb6
{[%clk 00:41:03]} {[%emt 00:01:33]} Rxa3 {[%clk 00:32:37]} {[%emt 00:00:08]} 29.
Qb5 {[%clk 00:40:35]} {[%emt 00:00:57]} Ra1 {[%clk 00:28:22]} {[%emt 00:04:45]}
30. Rb8+ {[%clk 00:40:39]} {[%emt 00:00:26]} Kh7 {[%clk 00:27:12]} {[%emt
00:01:41]} 31. Rxa8 {[%clk 00:40:58]} {[%emt 00:00:11]} Rxa8 {[%clk 00:27:29]}
{[%emt 00:00:12]} 32. Qxc5 {[%clk 00:41:19]} {[%emt 00:00:09]} Qd7 {[%clk
00:26:52]} {[%emt 00:01:07]} 33. h3 {[%clk 00:40:04]} {[%emt 00:01:46]} Rc8
{[%clk 00:26:46]} {[%emt 00:00:36]} 34. Qf2 {[%clk 00:38:20]} {[%emt 00:02:13]}
Qa4 {[%clk 00:26:42]} {[%emt 00:00:35]} 35. Rc1 {[%clk 00:37:28]} {[%emt
00:01:21]} Rc4 {[%clk 00:26:55]} {[%emt 00:00:18]} 36. g3 {[%clk 00:36:23]}
{[%emt 00:01:35]} Rc3 {[%clk 00:26:59]} {[%emt 00:00:27]} 37. Kh2 {[%clk
00:33:39]} {[%emt 00:03:13]} d4 {[%clk 00:26:50]} {[%emt 00:00:39]} 38. Qd2
{[%clk 00:29:12]} {[%emt 00:04:57]} Qc4 {[%clk 00:26:54]} {[%emt 00:00:27]} 39.
h4 {[%clk 00:23:40]} {[%emt 00:06:01]} Qc5 {[%clk 00:26:30]} {[%emt 00:00:54]}
40. Kh3 {[%clk 00:22:28]} {[%emt 00:01:41]} d3 {[%clk 00:26:32]} {[%emt
00:00:29]} 41. f5 {[%clk 00:13:09]} {[%emt 00:09:48]} Rxc2 {[%clk 00:22:54]}
{[%emt 00:04:09]} 42. fxg6+ {[%clk 00:13:14]} {[%emt 00:00:25]} Kg7 {[%clk
00:22:58]} {[%emt 00:00:26]} 43. Qxd3 {[%clk 00:13:01]} {[%emt 00:00:43]} Rxc1
{[%clk 00:22:05]} {[%emt 00:01:23]} 44. Qd7+ {[%clk 00:13:19]} {[%emt
00:00:11]} Kxg6 {[%clk 00:22:22]} {[%emt 00:00:13]} 45. Qxe6+ {[%clk 00:13:15]}
{[%emt 00:00:35]} Kg7 {[%clk 00:22:02]} {[%emt 00:00:50]} 46. Qf6+ {[%clk
00:09:49]} {[%emt 00:03:55]} Kg8 {[%clk 00:22:26]} {[%emt 00:00:07]} 47. Qd8+
{[%clk 00:10:06]} {[%emt 00:00:12]} Kf7 {[%clk 00:21:55]} {[%emt 00:01:02]} 48.
Qd7+ {[%clk 00:08:37]} {[%emt 00:01:59]} Qe7 {[%clk 00:20:57]} {[%emt
00:01:29]} 49. Qd5+ {[%clk 00:06:13]} {[%emt 00:02:53]} Kg7 {[%clk 00:21:14]}
{[%emt 00:00:13]} 50. e6 {[%clk 00:04:17]} {[%emt 00:02:25]} Rc5 {[%clk
00:20:59]} {[%emt 00:00:46]} 51. Qd4+ {[%clk 00:03:54]} {[%emt 00:00:53]} Kg8
{[%clk 00:21:15]} {[%emt 00:00:14]} 52. Qe4 {[%clk 00:03:55]} {[%emt 00:00:28]}
Kg7 {[%clk 00:16:29]} {[%emt 00:05:17]} 53. Qd4+ {[%clk 00:04:00]} {[%emt
00:00:26]} Kg6 {[%clk 00:16:31]} {[%emt 00:00:28]} 54. Qe4+ {[%clk 00:03:45]}
{[%emt 00:00:44]} Kf6 {[%clk 00:14:58]} {[%emt 00:02:03]} 55. Qf4+ {[%clk
00:03:20]} {[%emt 00:00:55]} Kxe6 {[%clk 00:15:18]} {[%emt 00:00:10]} 56. Qe4+
{[%clk 00:03:44]} {[%emt 00:00:06]} Kf7 {[%clk 00:15:09]} {[%emt 00:00:40]} 57.
Qf3+ {[%clk 00:03:55]} {[%emt 00:00:18]} Kg6 {[%clk 00:14:58]} {[%emt
00:00:41]} 58. Qd3+ {[%clk 00:04:00]} {[%emt 00:00:24]} Rf5 {[%clk 00:15:15]}
{[%emt 00:00:14]} 59. g4 {[%clk 00:03:48]} {[%emt 00:00:42]} hxg4+ {[%clk
00:15:37]} {[%emt 00:00:08]} 60. Kxg4 {[%clk 00:04:09]} {[%emt 00:00:09]} Qb4+
{[%clk 00:15:58]} {[%emt 00:00:09]} 61. Kh3 {[%clk 00:04:13]} {[%emt 00:00:26]}
Qf4 {[%clk 00:15:31]} {[%emt 00:00:57]} 62. Qa6+ {[%clk 00:04:23]} {[%emt
00:00:20]} Rf6 {[%clk 00:15:46]} {[%emt 00:00:16]} 63. Qd3+ {[%clk 00:04:43]}
{[%emt 00:00:09]} Qf5+ {[%clk 00:16:08]} {[%emt 00:00:08]} 64. Qxf5+ {[%clk
00:04:43]} {[%emt 00:00:29]} Rxf5 {[%clk 00:16:30]} {[%emt 00:00:09]} 65. Kg4
{[%clk 00:05:04]} {[%emt 00:00:09]} Rd5 {[%clk 00:16:39]} {[%emt 00:00:21]} 0-1

[Event "ONJK U25"]
[Site "Enschede, Netherlands"]
[Date "2022.08.10"]
[Round "4.1"]
[White "Boudry, William"]
[Black "Baselmans, Luuk"]
[Result "0-1"]
[TimeControl "90min + 30sec/move"]
[WhiteElo "2115"]
[BlackElo "2256"]

1. e4 {[%clk 01:30:50]} {[%emt 00:00:09]} c5 {[%clk 01:30:48]} {[%emt
00:00:12]} 2. Nf3 {[%clk 01:30:53]} {[%emt 00:00:28]} Nc6 {[%clk 01:31:11]}
{[%emt 00:00:06]} 3. c3 {[%clk 01:30:48]} {[%emt 00:00:36]} Nf6 {[%clk
01:31:19]} {[%emt 00:00:22]} 4. e5 {[%clk 01:31:01]} {[%emt 00:00:16]} Nd5
{[%clk 01:31:43]} {[%emt 00:00:06]} 5. d4 {[%clk 01:30:42]} {[%emt 00:00:50]}
cxd4 {[%clk 01:32:05]} {[%emt 00:00:07]} 6. cxd4 {[%clk 01:30:31]} {[%emt
00:00:41]} d6 {[%clk 01:31:52]} {[%emt 00:00:43]} 7. Bc4 {[%clk 01:29:59]}
{[%emt 00:01:02]} Nb6 {[%clk 01:31:35]} {[%emt 00:00:47]} 8. Bb5 {[%clk
01:30:20]} {[%emt 00:00:09]} Bd7 {[%clk 01:24:20]} {[%emt 00:07:46]} 9. Nc3
{[%clk 01:28:58]} {[%emt 00:01:52]} dxe5 {[%clk 01:22:58]} {[%emt 00:01:52]} 10.
dxe5 {[%clk 01:28:21]} {[%emt 00:01:07]} a6 {[%clk 01:22:11]} {[%emt 00:01:17]}
11. Be2 {[%clk 01:26:33]} {[%emt 00:02:18]} Bg4 {[%clk 01:13:12]} {[%emt
00:09:28]} 12. O-O {[%clk 01:19:45]} {[%emt 00:07:19]} e6 {[%clk 01:12:22]}
{[%emt 00:01:20]} 13. Be3 {[%clk 01:19:14]} {[%emt 00:01:01]} Qd5 {[%emt
00:01:54]} 14. Qd2 Qxd2 {[%clk 01:10:58]} 15. Rfe1 {[%emt 00:00:17]} Qd1 16.
Rexd1 {[%clk 01:19:26]} Nd7 {[%clk 01:11:20]} {[%emt 00:00:07]} 17. Bf4 {[%clk
01:17:14]} {[%emt 00:02:42]} Be7 {[%clk 01:03:01]} {[%emt 00:08:49]} 18. Rac1
{[%clk 01:15:15]} {[%emt 00:02:30]} Rd8 {[%clk 01:01:35]} {[%emt 00:01:56]} 19.
h3 {[%clk 01:11:22]} {[%emt 00:04:23]} Bh5 {[%clk 01:01:08]} {[%emt 00:00:56]}
20. Na4 {[%clk 01:06:56]} {[%emt 00:04:57]} Nb4 {[%clk 00:57:04]} {[%emt
00:04:33]} 21. Bg3 {[%clk 01:02:13]} {[%emt 00:05:13]} Nxa2 {[%clk 00:52:56]}
{[%emt 00:04:39]} 22. Rc7 {[%clk 01:02:26]} {[%emt 00:00:17]} b5 {[%clk
00:53:18]} {[%emt 00:00:08]} 23. Nc3 {[%clk 01:01:51]} {[%emt 00:01:05]} Nxc3
{[%clk 00:53:39]} {[%emt 00:00:09]} 24. bxc3 {[%clk 01:02:19]} {[%emt
00:00:02]} Nb6 {[%clk 00:49:24]} {[%emt 00:04:45]} 25. Rxd8+ {[%clk 01:00:04]}
{[%emt 00:02:45]} Bxd8 {[%clk 00:49:29]} {[%emt 00:00:25]} 26. Ra7 {[%clk
00:59:16]} {[%emt 00:01:18]} Nd5 {[%clk 00:48:04]} {[%emt 00:01:54]} 27. Rxa6
{[%clk 00:57:49]} {[%emt 00:01:58]} Nxc3 {[%clk 00:48:25]} {[%emt 00:00:09]} 28.
Bd3 {[%clk 00:57:55]} {[%emt 00:00:23]} Bxf3 {[%clk 00:48:14]} {[%emt
00:00:41]} 29. gxf3 {[%clk 00:58:22]} {[%emt 00:00:03]} O-O {[%clk 00:48:09]}
{[%emt 00:00:35]} 30. Bf4 {[%clk 00:58:37]} {[%emt 00:00:16]} Nd5 {[%clk
00:47:11]} {[%emt 00:01:27]} 31. Bd2 {[%clk 00:58:55]} {[%emt 00:00:12]} Bc7
{[%clk 00:47:20]} {[%emt 00:00:22]} 32. f4 {[%clk 00:46:46]} {[%emt 00:12:39]}
Rb8 {[%clk 00:47:28]} {[%emt 00:00:21]} 33. Ra2 {[%clk 00:46:53]} {[%emt
00:00:23]} g6 {[%clk 00:46:21]} {[%emt 00:01:38]} 34. Rb2 {[%clk 00:47:01]}
{[%emt 00:00:22]} b4 {[%clk 00:46:41]} {[%emt 00:00:10]} 35. Be4 {[%clk
00:46:52]} {[%emt 00:00:38]} Nc3 {[%clk 00:43:08]} {[%emt 00:04:04]} 36. Bf3
{[%clk 00:35:04]} {[%emt 00:12:18]} Rd8 {[%clk 00:42:11]} {[%emt 00:01:26]} 37.
Be3 {[%clk 00:33:59]} {[%emt 00:01:35]} Ba5 {[%clk 00:41:59]} {[%emt 00:00:43]}
38. Rb3 {[%clk 00:33:23]} {[%emt 00:01:06]} Nb5 {[%clk 00:40:06]} {[%emt
00:02:23]} 39. Rb1 {[%clk 00:24:59]} {[%emt 00:08:54]} Na3 {[%clk 00:37:24]}
{[%emt 00:03:12]} 40. Ra1 {[%clk 00:21:43]} {[%emt 00:03:45]} Rd3 {[%clk
00:37:23]} {[%emt 00:00:31]} 41. Be2 {[%clk 00:21:53]} {[%emt 00:00:19]} Rc3
{[%clk 00:35:28]} {[%emt 00:02:26]} 42. Bd4 {[%clk 00:18:45]} {[%emt 00:03:39]}
Rc2 {[%clk 00:33:47]} {[%emt 00:02:11]} 43. Bd1 {[%clk 00:18:10]} {[%emt
00:01:04]} Rc4 {[%clk 00:34:10]} {[%emt 00:00:08]} 44. Be3 {[%clk 00:17:28]}
{[%emt 00:01:12]} Bd8 {[%clk 00:34:20]} {[%emt 00:00:20]} 45. Bc1 {[%clk
00:16:09]} {[%emt 00:01:48]} Be7 {[%clk 00:34:38]} {[%emt 00:00:13]} 46. Kg2
{[%clk 00:15:40]} {[%emt 00:00:59]} Bc5 {[%clk 00:34:19]} {[%emt 00:00:49]} 47.
Bd2 {[%clk 00:13:06]} {[%emt 00:03:04]} Be7 {[%clk 00:33:03]} {[%emt 00:01:46]}
48. Bb3 {[%clk 00:11:59]} {[%emt 00:01:36]} Rd4 {[%clk 00:33:21]} {[%emt
00:00:14]} 49. Be3 {[%clk 00:12:11]} {[%emt 00:00:11]} Rd3 {[%clk 00:33:44]}
{[%emt 00:00:13]} 50. Ba4 {[%clk 00:11:29]} {[%emt 00:01:12]} Kg7 {[%clk
00:28:43]} {[%emt 00:05:30]} 51. Kf1 {[%clk 00:10:42]} {[%emt 00:01:18]} b3
{[%clk 00:28:15]} {[%emt 00:00:58]} 52. Bc1 {[%clk 00:11:04]} {[%emt 00:00:07]}
Rd1+ {[%clk 00:28:38]} {[%emt 00:00:08]} 53. Ke2 {[%clk 00:11:26]} {[%emt
00:00:07]} Rxc1 {[%clk 00:29:03]} {[%emt 00:00:06]} 0-1

[Event "ONJK U25"]
[Site "Enschede, Netherlands"]
[Date "2022.08.10"]
[Round "4.2"]
[White "Van Roon, Sjoerd"]
[Black "Merkon, Oseb"]
[Result "1/2-1/2"]
[TimeControl "90min + 30sec/move"]
[WhiteElo "2310"]
[BlackElo "1954"]

1. e4 {[%clk 01:30:59]} {[%emt 00:00:01]} c5 {[%clk 01:30:58]} {[%emt
00:00:02]} 2. Nf3 {[%clk 01:31:23]} {[%emt 00:00:06]} d6 {[%clk 01:31:11]}
{[%emt 00:00:17]} 3. Bb5+ {[%clk 01:31:19]} {[%emt 00:00:34]} Bd7 {[%clk
01:31:27]} {[%emt 00:00:14]} 4. Bxd7+ {[%clk 01:31:44]} {[%emt 00:00:05]} Qxd7
{[%clk 01:31:51]} {[%emt 00:00:06]} 5. c4 {[%clk 01:32:09]} {[%emt 00:00:05]}
e5 {[%clk 01:32:18]} {[%emt 00:00:04]} 6. Nc3 {[%clk 01:31:55]} {[%emt
00:00:44]} g6 {[%clk 01:32:28]} {[%emt 00:00:21]} 7. d3 {[%clk 01:31:57]}
{[%emt 00:00:27]} Bg7 {[%clk 01:32:49]} {[%emt 00:00:09]} 8. O-O {[%clk
01:31:54]} {[%emt 00:00:33]} Ne7 {[%clk 01:33:10]} {[%emt 00:00:09]} 9. Be3
{[%clk 01:30:32]} {[%emt 00:01:52]} f5 {[%clk 01:31:23]} {[%emt 00:02:17]} 10.
a3 {[%clk 01:30:05]} {[%emt 00:00:57]} f4 {[%clk 01:31:07]} {[%emt 00:00:46]}
11. Bd2 {[%clk 01:30:22]} {[%emt 00:00:13]} Nbc6 {[%clk 01:30:30]} {[%emt
00:01:08]} 12. Nd5 {[%clk 01:24:13]} {[%emt 00:06:39]} Nxd5 {[%clk 01:28:18]}
{[%emt 00:02:41]} 13. exd5 {[%clk 01:22:20]} {[%emt 00:02:23]} Nd4 {[%clk
01:26:22]} {[%emt 00:02:26]} 14. Nxd4 {[%clk 01:16:49]} {[%emt 00:06:01]} cxd4
{[%clk 01:26:40]} {[%emt 00:00:13]} 15. b4 {[%clk 01:16:34]} {[%emt 00:00:45]}
Qf5 {[%clk 01:24:56]} {[%emt 00:02:14]} 16. Qe2 {[%clk 01:11:45]} {[%emt
00:05:19]} O-O {[%clk 01:22:59]} {[%emt 00:02:27]} 17. f3 {[%clk 01:11:37]}
{[%emt 00:00:37]} Rfc8 {[%clk 01:17:58]} {[%emt 00:05:31]} 18. a4 {[%clk
01:05:33]} {[%emt 00:06:35]} h5 {[%clk 01:13:48]} {[%emt 00:04:40]} 19. Rfc1
{[%clk 01:02:00]} {[%emt 00:04:03]} Bf8 {[%clk 01:12:39]} {[%emt 00:01:39]} 20.
b5 {[%clk 00:58:40]} {[%emt 00:03:49]} g5 {[%clk 01:08:45]} {[%emt 00:04:24]}
21. a5 {[%clk 00:54:34]} {[%emt 00:04:37]} Be7 {[%clk 00:59:49]} {[%emt
00:09:25]} 22. a6 {[%clk 00:49:52]} {[%emt 00:05:12]} b6 {[%clk 00:58:52]}
{[%emt 00:01:28]} 23. Kf2 {[%clk 00:44:10]} {[%emt 00:06:11]} g4 {[%clk
00:47:21]} {[%emt 00:12:00]} 24. Rg1 {[%clk 00:37:13]} {[%emt 00:07:27]} Rf8
{[%clk 00:42:04]} {[%emt 00:05:48]} 25. Qe4 {[%clk 00:35:31]} {[%emt 00:02:12]}
Bh4+ {[%clk 00:39:03]} {[%emt 00:03:31]} 26. Ke2 {[%clk 00:35:34]} {[%emt
00:00:26]} Qxe4+ {[%clk 00:37:43]} {[%emt 00:01:51]} 27. dxe4 {[%clk 00:35:54]}
{[%emt 00:00:11]} Kf7 {[%clk 00:31:58]} {[%emt 00:06:14]} 28. g3 {[%clk
00:30:41]} {[%emt 00:05:43]} gxf3+ {[%clk 00:27:51]} {[%emt 00:04:36]} 29. Kxf3
{[%clk 00:31:04]} {[%emt 00:00:08]} fxg3 {[%clk 00:27:33]} {[%emt 00:00:47]} 30.
hxg3 {[%clk 00:31:30]} {[%emt 00:00:04]} Kg6+ {[%clk 00:23:56]} {[%emt
00:04:08]} 31. Kg2 {[%clk 00:30:50]} {[%emt 00:01:10]} Be7 {[%clk 00:19:59]}
{[%emt 00:04:27]} 32. Rgf1 {[%clk 00:31:01]} {[%emt 00:00:19]} Rxf1 {[%clk
00:19:49]} {[%emt 00:00:40]} 33. Rxf1 {[%clk 00:31:26]} {[%emt 00:00:05]} Rc8
{[%clk 00:20:06]} {[%emt 00:00:12]} 34. Rc1 {[%clk 00:31:44]} {[%emt 00:00:13]}
Bg5 {[%clk 00:20:16]} {[%emt 00:00:20]} 35. Bxg5 {[%clk 00:27:56]} {[%emt
00:04:18]} Kxg5 {[%clk 00:20:44]} {[%emt 00:00:02]} 36. Kf3 {[%clk 00:28:10]}
{[%emt 00:00:15]} Rf8+ {[%clk 00:20:51]} {[%emt 00:00:23]} 37. Ke2 {[%clk
00:27:57]} {[%emt 00:00:43]} Kg4 {[%clk 00:20:31]} {[%emt 00:00:50]} 38. Rh1
{[%clk 00:27:38]} {[%emt 00:00:49]} Rc8 {[%clk 00:16:21]} {[%emt 00:04:40]} 39.
Rh4+ {[%clk 00:24:32]} {[%emt 00:03:36]} Kg5 {[%clk 00:10:48]} {[%emt
00:06:03]} 40. Kd3 {[%clk 00:24:56]} {[%emt 00:00:06]} Rf8 {[%clk 00:10:33]}
{[%emt 00:00:45]} 41. Ke2 {[%clk 00:25:21]} {[%emt 00:00:05]} Rh8 {[%clk
00:06:33]} {[%emt 00:04:30]} 42. Kd3 {[%clk 00:25:07]} {[%emt 00:00:44]} Rh7
{[%clk 00:06:55]} {[%emt 00:00:08]} 43. Ke2 {[%clk 00:25:15]} {[%emt 00:00:22]}
Rf7 {[%clk 00:07:09]} {[%emt 00:00:16]} 44. Rh2 {[%clk 00:23:11]} {[%emt
00:02:34]} Kg4 {[%clk 00:07:23]} {[%emt 00:00:17]} 45. Rf2 {[%clk 00:23:24]}
{[%emt 00:00:17]} d3+ {[%clk 00:03:57]} {[%emt 00:03:56]} 46. Ke3 {[%clk
00:23:45]} {[%emt 00:00:09]} d2 {[%clk 00:03:30]} {[%emt 00:00:57]} 47. Rxd2
{[%clk 00:23:41]} {[%emt 00:00:33]} Rf3+ {[%clk 00:03:59]} 48. Ke2 {[%clk
00:24:04]} {[%emt 00:00:07]} Rc3 {[%clk 00:04:17]} {[%emt 00:00:12]} 49. Rd3
{[%clk 00:23:03]} {[%emt 00:01:31]} Rc2+ {[%clk 00:03:53]} {[%emt 00:00:54]} 50.
Kd1 {[%clk 00:23:10]} {[%emt 00:00:24]} Rxc4 {[%clk 00:04:14]} {[%emt
00:00:09]} 51. Kd2 {[%clk 00:23:37]} {[%emt 00:00:03]} Rxe4 {[%clk 00:04:03]}
{[%emt 00:00:40]} 52. Rc3 {[%clk 00:24:02]} {[%emt 00:00:05]} Rd4+ {[%clk
00:04:27]} {[%emt 00:00:06]} 53. Ke3 {[%clk 00:24:07]} {[%emt 00:00:25]} Rxd5
{[%clk 00:02:10]} {[%emt 00:02:48]} 54. Rc7 {[%clk 00:24:26]} {[%emt 00:00:10]}
Kxg3 {[%clk 00:02:24]} {[%emt 00:00:16]} 55. Rxa7 {[%clk 00:24:48]} {[%emt
00:00:09]} Rxb5 {[%clk 00:02:49]} {[%emt 00:00:05]} 56. Rg7 {[%clk 00:24:25]}
{[%emt 00:00:52]} Kh3 {[%clk 00:01:33]} {[%emt 00:01:44]} 57. Rb7 {[%clk
00:24:01]} {[%emt 00:00:55]} Ra5 {[%clk 00:01:11]} {[%emt 00:00:53]} 58. Rxb6
{[%clk 00:24:26]} {[%emt 00:00:05]} d5 {[%clk 00:01:38]} {[%emt 00:00:04]} 59.
Re6 {[%clk 00:24:31]} {[%emt 00:00:25]} Ra3+ {[%clk 00:02:03]} {[%emt
00:00:05]} 60. Kf2 {[%clk 00:23:59]} {[%emt 00:01:02]} Ra2+ {[%clk 00:01:42]}
{[%emt 00:00:51]} 61. Ke3 {[%clk 00:23:54]} {[%emt 00:00:34]} Ra3+ {[%clk
00:02:06]} {[%emt 00:00:07]} 62. Kf2 {[%clk 00:24:20]} {[%emt 00:00:04]} Ra2+
{[%clk 00:02:27]} {[%emt 00:00:08]} 63. Ke3 {[%clk 00:24:43]} {[%emt 00:00:06]}
Ra3+ {[%clk 00:00:37]} {[%emt 00:02:21]} 1/2-1/2